Cogmind - Beta 13 @@@ ROGUE MODE // 2024.05.27 @ 00:51:36 Player: Ragemodebzrk Result: Destroyed by G-47 Trooper with Particle Gun Performance ------------- Evolutions (1) 500 Regions Visited (2) 400 Robots Destroyed (28) 140 Value Destroyed (921) 921 Prototype IDs (3) 60 Alien Tech Used (0) 0 Bonus (0) 0 TOTAL SCORE: 2021 Bonus ------- None Cogmind --------- Core Integrity 0/400 Matter 290/300 Energy 80/100 System Corruption 0% Temperature Cool (9) Movement Core (50) Location -9/Materials Parts ------- > --- POWER (2) -------- (None) > --- PROPULSION (2) --- (None) > --- UTILITY (2) ------ Seismic Detector > --- WEAPON (3) ------- Small Laser > --- INVENTORY (5) ---- High-capacity Battery (250) Core Shielding Light Armor Plating Field Recycling Unit (0) Peak State ------------ > --- POWER ------------ Ion Engine Light Ion Engine > --- PROPULSION ------- Aluminum Leg Aluminum Leg > --- UTILITY ---------- Medium Matter Pod Core Shielding > --- WEAPON ----------- EM Shotgun Small Laser Mace > --- INVENTORY -------- Ion Engine High-capacity Battery Light Armor Plating Field Recycling Unit Light Assault Rifle [Rating: 11] Favorites ----------- Power Ion Engine Engine Ion Engine Propulsion Aluminum Leg Leg Aluminum Leg Utility Core Shielding Device Seismic Detector Storage Medium Matter Pod Protection Core Shielding Weapon Small Laser Energy Gun Small Laser Ballistic Gun Assault Rifle Launcher Grenade Launcher Special Weapon Mining Laser Impact Weapon Mace Build | -11 -10 -9 ------- Run | Yrd Mat Mat Slots Evolved 2 | . . 2 Power 1 | . . 1 Propulsion . | . . . Utility . | . . . Weapon 1 | . . 1 Parts Attached 43 | 9 14 20 Power 8 | 1 2 5 Engine 8 | 1 2 5 Core . | . . . Reactor . | . . . Propulsion 9 | 2 3 4 Treads . | . . . Leg 9 | 2 3 4 Wheel . | . . . Hover . | . . . Flight . | . . . Utility 7 | 2 4 1 Device 3 | 2 . 1 Storage 3 | . 3 . Processor . | . . . Hackware . | . . . Protection 1 | . 1 . Artifact . | . . . Weapon 19 | 4 5 10 Energy Gun 9 | 2 4 3 Energy Cannon . | . . . Ballistic Gun 4 | 1 . 3 Ballistic Cannon . | . . . Launcher 1 | . 1 . Special Weapon 2 | 1 . 1 Impact Weapon 3 | . . 3 Slashing Weapon . | . . . Piercing Weapon . | . . . Special Melee Weapon . | . . . Unidentified Prototypes . | . . . Parts Lost 20 | . 5 15 Power 6 | . 1 5 Propulsion 5 | . 1 4 Utility 2 | . 1 1 Weapon 7 | . 2 5 Highest Loss Streak 8 | . 4 8 To Critical Strikes . | . . . Average Slot Usage (%) 89 | . 92 84 Engine 12 | . 9 16 Leg 23 | . 26 19 Device 4 | . 6 1 Storage 11 | . 12 10 Protection 8 | . 8 9 Energy Gun 16 | . 20 10 Ballistic Gun 4 | . 3 5 Launcher 1 | . 2 . Impact Weapon 4 | . . 9 Naked Turns . | . . . Heaviest Build 17 | 8 10 17 Greatest Support 20 | 20 20 20 Greatest Overweight (x) 3 | . . 3 Average Overweight (x) . | . . . Largest Inventory Capacity 5 | 5 5 5 Average Capacity 5 | 5 5 5 Most Carried 5 | 4 5 5 Average Carried 3 | 1 4 3 Final Capacity 5 | 5 5 5 Final Carried 4 | 3 4 4 Class Distribution -------------------- 59% | Scavenger-Mutant 37% | Mutant Dominant Class ---------------- Scavenger-Mutant | -10/Materials Scavenger-Mutant | -9/Materials Resources | -11 -10 -9 ----------- Run | Yrd Mat Mat Matter Collected 865 | 295 407 163 Remotely . | . . . Salvage Created 1005 | 43 415 547 Parts 52 | 2 24 26 Haulers Intercepted . | . . . Recyclers Shooed . | . . . Parts Field Recycled . | . . . Retrieved Matter . | . . . Parts Self-Destructed . | . . . Prevented . | . . . Kills | -11 -10 -9 ------- Run | Yrd Mat Mat Combat Hostiles Destroyed 26 | 1 12 13 Melee 4 | . . 4 Guns 17 | 1 10 6 AOE 2 | . 2 . Classes Destroyed 5 | 1 3 1 Worker 1 | . 1 . Watcher 1 | . 1 . Swarmer 3 | . 3 . Grunt 20 | 1 9 10 Sentry 3 | . . 3 Best Kill Streak 4 | 1 4 4 Combat Bots Only 4 | 1 3 4 Max Kills in Single Turn 2 | 1 2 1 Gunslinging . | . . . Exploded 1 | . 1 . Melee 1 | . . 1 Uniques/NPCs Destroyed . | . . . Combat | -11 -10 -9 -------- Run | Yrd Mat Mat Hostile Shots Fired 236 | 12 82 142 Missed 50 | 4 19 27 Damage Taken 2413 | 88 765 1560 Core 656 | 33 213 410 Absorbed by Shields . | . . . Redirected to Shielding 41 | . 13 28 Regen/Repaired (Parts) 147 | . 147 . Core Remaining (%) 43 | 86 1 . Volleys Fired 117 | 15 51 51 Largest 2 | 2 2 2 Hottest 120 | 120 80 60 Shots Fired 163 | 21 89 53 Gun 147 | 15 83 49 Cannon . | . . . Launcher 6 | . 6 . Special 10 | 6 . 4 Kinetic 53 | 6 23 24 Thermal 97 | 15 60 22 Explosive 6 | . 6 . Electromagnetic 7 | . . 7 Robot Hit Streak 12 | 4 12 9 Robot Miss Streak 4 | 4 2 2 Penetration Max . | . . . Secondary Targets 1 | . 1 . Max Gunslinging Chain 1 | . 1 . Shots Hit Robots 137 | 8 63 66 Core Hits 48 | 2 28 18 Critical Kills 1 | . . 1 Critical Parts Destroyed 3 | . . 3 Critical Strikes 5 | . . 5 Smash 5 | . . 5 Melee Attacks 30 | . . 30 Impact 30 | . . 30 Slashing . | . . . Piercing . | . . . Sneak Attacks . | . . . Combat Hostiles . | . . . Follow-up Attacks . | . . . Damage Inflicted 2107 | 102 940 1065 Guns 1193 | 102 679 412 Cannons . | . . . Explosions 261 | . 261 . Melee 642 | . . 642 Ramming . | . . . Kinetic 352 | 25 180 147 Thermal 732 | 77 499 156 Explosive 261 | . 261 . Electromagnetic 120 | . . 120 Impact 642 | . . 642 Slashing . | . . . Piercing . | . . . Highest Corruption . | . . . Average Corruption . | . . . Corruption Purged . | . . . Corruption Blocked . | . . . Overload Shots . | . . . Overflow Damage 80 | . . 80 Projectiles . | . . . Explosions . | . . . Melee 80 | . . 80 Knockbacks 1 | . . 1 Impact 1 | . . 1 Kinetic . | . . . Secondary . | . . . Self-Inflicted Damage 37 | . 37 . Shots 1 | . 1 . Rammed . | . . . Targets Rammed . | . . . Kicked . | . . . Crushed . | . . . Highest Temperature 136 | 80 90 136 Average Temperature 33 | 28 25 48 Received Heat Transfer 1239 | 48 393 798 Siege Activations . | . . . Robots Corrupted . | . . . Combat Hostiles . | . . . Parts Fried 3 | . . 3 Impact Corruptions 5 | . . 5 Robots Melted . | . . . Combat Hostiles . | . . . Parts Melted . | . . . Heat Transferred 1662 | 175 1125 362 Parts Sabotaged . | . . . Parts Stolen . | . . . Parts Stripped . | . . . Power Chain Reactions . | . . . Alert | -11 -10 -9 ------- Run | Yrd Mat Mat Peak Influence 336 | 20 305 336 Initial 107 | . 13 107 Average 156 | 10 160 199 Maximum Alert Level 1 | . 1 1 Low Security (%) 66 | 100 57 66 Level 1 33 | . 42 33 Level 2 . | . . . Level 3 . | . . . Level 4 . | . . . Level 5 . | . . . High Security . | . . . Max Security . | . . . Squads Dispatched 5 | . 2 3 Investigation 2 | . 2 . Extermination . | . . . Reinforcement 3 | . . 3 Assault . | . . . Garrison . | . . . Intercept . | . . . Searches Triggered . | . . . Construction Impeded . | . . . Haulers Reinforced . | . . . Active Scanning Responses . | . . . Cargo Convoy Interrupts . | . . . Stealth | -11 -10 -9 --------- Run | Yrd Mat Mat Distress Signals 1 | . . 1 Communications Jammed . | . . . Distress Signals . | . . . Times Spotted 45 | 1 21 23 Peak Tracking Total 6 | 1 4 6 Tactical Retreats 5 | . 3 2 Traps | -11 -10 -9 ------- Run | Yrd Mat Mat Traps Triggered . | . . . Indirectly . | . . . Trap Hack Attempts . | . . . Triggered . | . . . Disarmed . | . . . Reprogrammed 6 | . 6 . Reused . | . . . Traps Extracted . | . . . Installed . | . . . Triggered . | . . . Machines | -11 -10 -9 ---------- Run | Yrd Mat Mat Machines Disabled 2 | . 2 . Max in Single Turn 1 | . 1 . Machines Repaired . | . . . Machines Dismantled . | . . . Machines Sabotaged . | . . . Overloaded Fab Kills . | . . . Hacking | -11 -10 -9 --------- Run | Yrd Mat Mat Machines Accessed 8 | . 6 2 Terminals 5 | . 4 1 Fabricators . | . . . Repair Stations 1 | . 1 . Recycling Units 1 | . 1 . Scanalyzers 1 | . . 1 Garrison Access . | . . . Total Hacks 40 | . 23 17 Successful 28 | . 16 12 Failed 12 | . 7 5 Catastrophic 1 | . 1 . Database Lockouts . | . . . Manual 1 | . 1 . Terminals 16 | . 13 3 Fabricators . | . . . Repair Stations 7 | . 7 . Recycling Units 3 | . 3 . Scanalyzers 14 | . . 14 Garrison Access . | . . . Terminal Hacks 8 | . 7 1 Record 4 | . 4 . Prototype ID Bank 1 | . 1 . Locate Traps 2 | . 1 1 Reprogram Traps 1 | . 1 . Fabricator Hacks . | . . . Repair Station Hacks 6 | . 6 . Scan Component 3 | . 3 . Repair 3 | . 3 . Recycling Unit Hacks 3 | . 3 . Recycle Component 2 | . 2 . Process 1 | . 1 . Scanalyzer 11 | . . 11 Insert Component 5 | . . 5 Analyze 6 | . . 6 Garrison Access Hacks . | . . . Unauthorized Hacks . | . . . Terminals . | . . . Fabricators . | . . . Repair Stations . | . . . Recycling Units . | . . . Scanalyzers . | . . . Garrison Access . | . . . Data Cores Recovered . | . . . Used . | . . . Hacking Detections 8 | . 6 2 Full Trace Events 4 | . 3 1 Feedback Events . | . . . Feedback Blocked . | . . . Robot Schematics Acquired . | . . . Robots Built . | . . . Authchips . | . . . Time . | . . . Total Robot Build Rating . | . . . Part Schematics Acquired 5 | . . 5 Parts Built . | . . . Authchips . | . . . Time . | . . . Total Part Build Rating . | . . . Parts Repaired 3 | . 3 . Time 78 | . 78 . Parts Recycled 2 | . 2 . Recycled Matter 215 | . 215 . Retrieved Matter . | . . . Retrieved Components . | . . . Parts Scanalyzed 5 | . . 5 Part Schematics Acquired 5 | . . 5 Parts Damaged . | . . . Bothacking | -11 -10 -9 ------------ Run | Yrd Mat Mat Used RIF Installer . | . . . Robots Hacked . | . . . Non-combat . | . . . Combat . | . . . Robot Hacks Applied . | . . . Relay Couplers Released . | . . . Fabnet Peak Effective % . | . . . Robots Rewired . | . . . Allies Hacked . | . . . Hacks Repelled . | . . . Allies | -11 -10 -9 -------- Run | Yrd Mat Mat Total Allies . | . . . Largest Group . | . . . Highest-Rated Group . | . . . Highest-Rated Ally . | . . . Total Orders . | . . . Ally Attacks . | . . . Total Damage . | . . . Kills . | . . . Allies Corrupted . | . . . Allies Melted . | . . . Intel | -11 -10 -9 ------- Run | Yrd Mat Mat Robot Analysis Total . | . . . Derelict Logs Recovered . | . . . Drone Launches . | . . . Drone Recoveries . | . . . Exploration | -11 -10 -9 ------------- Run | Yrd Mat Mat Turns Passed 1494 | 185 729 580 Spaces Moved 759 | 108 390 261 Core 30 | 22 . 8 Treads . | . . . Legs 729 | 86 390 253 Wheels . | . . . Hover . | . . . Flight . | . . . Fastest Speed 50 | 50 120 50 Average Speed 117 | 105 120 119 Slowest Speed 200 | 120 120 200 Overloaded Moves . | . . . Propulsion Burnouts . | . . . Robots Hopped . | . . . Cave-ins Triggered . | . . . Exploration Rate (%) 29 | 8 51 28 Regions Visited 2 Branch Regions . Pre-discovered Areas . | . . . Known Exits Taken . | . . . Unknown Exits Taken 2 | 1 1 . Scrap Searched . | . . . Spaces Dug 3 | 3 . . Terrain Destroyed 16 | 3 13 . Melee . | . . . Projectile 3 | 3 . . AOE 13 | . 13 . Terrain Rammed . | . . . Walls Destroyed . | . . . Machines Disabled . | . . . Actions | -11 -10 -9 --------- Run | Yrd Mat Mat Total 1139 | 147 564 428 Wait 116 | 1 80 35 Move 757 | 107 389 261 Hop . | . . . Pick Up 52 | 12 20 20 Fast Attach . | . . . Attach 29 | 8 9 12 Detach 2 | 1 1 . Swap 14 | 1 5 8 Drop 22 | 2 9 11 Fire 117 | 15 51 51 Melee 30 | . . 30 Ram . | . . . Kick . | . . . Crush . | . . . Escape Stasis . | . . . Rewire . | . . . Trap . | . . . Miscellaneous . | . . . Route ------- -11/Scrapyard -10/Materials (discovered 2 exits: *Mat / [*Min]) -9/Materials (discovered 3 exits: [*Mat] / [*Min] / [*Sto]) History --------- Turn | Location | Event 2 | -11/Scrapyard | Met Revision 17 65 | -11/Scrapyard | Discovered new exit (range 8) 186 | -11/Scrapyard | Entered Materials 315 | -10/Materials | Build established: Mutant 346 | -10/Materials | Core integrity fell below 50% 390 | -10/Materials | Lost 4 parts (1p1n1u1w) 526 | -10/Materials | Core integrity fell below 20% 616 | -10/Materials | Discovered new exit (range 16) 709 | -10/Materials | Repaired Aluminum Leg 748 | -10/Materials | Repaired Ion Engine 776 | -10/Materials | Repaired Sml. Laser 790 | -10/Materials | Discovered new exit (range 8) 915 | -10/Materials | Entered another Materials area 915 | -9/Materials | Evolved 2 slots: Power x1, Weapon x1 952 | -9/Materials | Discovered new exit (range 8) 1129 | -9/Materials | Discovered new exit (range 12) 1226 | -9/Materials | Lost 7 parts (3p2n2w) 1380 | -9/Materials | Discovered new exit (range 16) 1448 | -9/Materials | Core integrity fell below 50% 1469 | -9/Materials | Core integrity fell below 20% 1495 | -9/Materials | Destroyed by G-47 Trooper with Particle Gun Last Messages --------------- Y-45 Defender system terminally corrupted. Ion Engine destroyed. Y-45 Defender suffers critical hit (Smash). Destroyed Beam Rifle. Y-45 Defender system corrupted by crushing effect. Y-45 Defender system terminally corrupted. Lgt. Armor Plating fried. Lgt. Treads fried. G-34 Mercenary suffers critical hit (Smash). Destroyed Heat Sink. G-34 Mercenary system corrupted by crushing effect. G-34 Mercenary IFF system glitched. Aluminum Leg destroyed. G-34 Mercenary destroyed. Hammer destroyed. Acquired Sml. Laser. Critical hit (Burn: +37). [Achievement: First Step to Greatness] Map ----- +----------------------------------------------------+ | # # ## """ #?????????# | | # # ## """ ########### | | ###### ## """ + ! =% % | | ?????# ## ##### ##### | | ?????# ###########???# #???#### | | ?????# #####?????????# #??????? | | ?????# # % #?????????#+#??????? | | ?????# # #?????????# ??????? | | ?????# # #?????????# ??????? | | ????###+### / #?????????# ?????? | | ????# # ########??# ?????? | | ????# # ## #??# ????? | | ????# + ## #??# ????? | | ????# ##+### """ #??# ???? | | ????# % + """ #???#####???? | | ????# = # """ #???????????? | | ????# # #???????????? | | ????# # """ #???????????? | | ????# + """ #???????????? | | ????######## # """ #???????????? | | ?########### # #???????????? | | ?# # # #???????????? | | ?# # # #???????????? | | ?# # ####### ??????? | | ?# ==#[ ?????? | | ?# *@%+%[ ?????? | | ?# """ """g#= ?????? | | ?# """ """ # ####### ??????? | | ?# """ """ # #????????###??????? | | ??########## #?????????????????? | | ???????????# #?????????????????? | | ???????????# #?????????????????? | | ???????????# #?????????????????? | | ???????????# #?????????????????? | | ???????????+ #?????????????????? | | ???????????# #?????????????????? | | ???????????? < #?????????????????? | | ???????????? #?????????????????? | | ????????????####?????????????????? | | ?????????????????????????????????? | | ?????????????????????????????????? | | ?????????????????????????????????? | | ?????????????????????????????????? | | ?????????????????????????????????? | | ?????????????????????????????????? | | ?????????????????????????????????? | | ?????????????????????????????????? | | ?????????????????????????????????? | | ?????????????????????????????????? | | ?????????????????????????????????? | +----------------------------------------------------+ Best States ------------- Heat Dissipation 28 Energy Generation 15 Energy Capacity 400 Matter Stores 400 Matter Capacity 400 Sight Range 16 Terrain Scan Range 16 Terrain Scan Density 10 Core Shielding 20 Evasion (%) 55 Item Schematics ----------------- Ion Engine | -9/Materials | Scanalyzed Lgt. Armor Plating | -9/Materials | Scanalyzed Lgt. Assault Rifle | -9/Materials | Scanalyzed Hcp. Battery | -9/Materials | Scanalyzed Field Recycling Unit | -9/Materials | Scanalyzed Robot Schematics ------------------ None Fabricated ------------ Nothing Alien Tech Used ----------------- None Achievements -------------- Close Call Crack Shot First Step to Greatness One Hack Too Far Part-time Mechanic Uninvited Guest Challenges ------------ None Game ------ Seed GaussControlAccelerator Manual? 0 Play Time 00:53:19 Cumulative 0.8 hours Start 2024.05.26 @ 23:46:24 End 2024.05.27 @ 00:51:36 Sessions 1 Manual Loads 0 Difficulty Rogue Special Mode None Game No. 1 Rogue 1 Adventurer 0 Explorer 0 Win Type - Total 0 Types 0/0/0/0/0/0/0/0/0 Lore% 0 Gallery% 1 Achievement% 2 Wizard Run 0 Options --------- Layout 1 ASCII 0 Keyboard 0 Movement Mouse Keybinds 0 Fullscreen 1 Font 24/Proggy Map View 50x35 Zoom Use 3% Tactical HUD 0 Map Filters NONE Filters NONE Steam 1 RUN: bde46f8a-f60d-4437-85c1-fb21f9c6699f